bitfinex/quotes_ETHUSD_20251212
["timestamp","ask_amount","ask_price","bid_price","bid_amount"]
[1765497602766,0.4646,3237.4,3237.0,0.4891]
[1765497602969,0.002,3237.5,3237.3,0.4891]
[1765497603356,0.9525,3237.4,3236.8,0.28300997]
[1765497603774,0.9525,3237.4,3237.2,0.4646]
[1765497604202,0.002,3237.5,3237.3,0.77210997]
[1765497604363,0.002,3237.5,3237.4,27.245902]
[1765497604695,0.4666,3237.5,3237.2,0.4646]
[1765497604902,0.3331,3237.3,3237.2,0.4646]
[1765497605198,0.3331,3237.3,3236.8,0.489]
[1765497605386,0.3347,3236.9,3236.1,0.001]
[1765497605581,0.4849,3236.8,3236.7,3.08956653]
[1765497605774,0.6841,3236.8,3236.7,3.08956653]
[1765497605974,0.4646,3237.0,3236.7,3.08956653]
[1765497606173,0.4879,3236.8,3236.7,3.08956653]
[1765497606578,0.4879,3236.8,3236.6,0.4666]
[1765497606579,0.9525,3236.8,3236.6,3.08965606]
[1765497606785,0.3145,3236.7,3236.5,0.28300997]
[1765497607096,0.4879,3236.4,3236.3,0.4879]
[1765497607281,0.4879,3236.4,3236.1,0.001]
[1765497607282,0.9525,3236.4,3236.1,0.001]
[1765497607482,0.4646,3236.4,3236.1,3.09113936]
[1765497607690,0.4879,3236.2,3236.1,3.09113936]
[1765497608191,0.4646,3236.7,3236.1,0.4901]
[1765497608397,0.4646,3236.7,3236.4,0.28300997]
[1765497608563,0.4879,3236.5,3236.4,0.28300997]
[1765497609100,0.9525,3236.5,3236.4,0.28300997]
[1765497609297,0.4646,3236.8,3236.4,0.28300997]
[1765497609482,0.4646,3236.8,3236.6,0.28300997]
[1765497609871,0.4879,3236.7,3236.6,0.28300997]
[1765497610072,0.4879,3236.7,3236.6,3.37267196]
[1765497610269,0.9525,3236.7,3236.6,3.37267196]
[1765497610627,0.6638,3237.2,3236.6,7.62597851]
[1765497610760,0.4879,3236.7,3236.6,4.04721652]
[1765497610962,0.4879,3236.7,3236.6,3.37267196]
[1765497611662,0.4646,3237.0,3236.6,6.46233395]
[1765497612187,0.1992,3237.2,3236.9,0.4891]
[1765497612402,0.4646,3237.0,3236.8,0.28300997]
[1765497612588,0.4879,3236.9,3236.8,0.95754436]
[1765497612765,0.4879,3236.9,3236.8,0.28300997]
[1765497613611,0.1992,3237.2,3236.8,0.77600997]
[1765497613889,0.6714,3237.2,3236.8,0.77600997]
[1765497614265,0.4722,3237.1,3236.9,3.08937563]
[1765497614674,0.4761,3237.0,3236.9,3.08937563]
[1765497614891,0.002,3237.5,3237.0,0.493]
[1765497615094,0.002,3237.5,3237.1,0.77600997]
[1765497615299,0.4742,3237.5,3237.1,0.77600997]
[1765497616318,0.4742,3237.5,3237.2,3.08908933]
[1765497616600,0.4742,3237.5,3237.2,6.17817866]
[1765497616794,0.4742,3237.5,3237.3,0.28300997]
[1765497617824,0.4802,3237.4,3237.3,0.28300997]
[1765497618187,0.002,3237.5,3237.4,3.08889849]
[1765497618380,0.002,3237.5,3237.4,3.54999849]
[1765497618624,0.4822,3237.5,3237.4,3.85065016]
[1765497618922,0.9523,3237.5,3237.4,3.08889849]
[1765497619118,0.9523,3237.5,3237.4,4.28889849]
[1765497619978,0.4822,3237.5,3237.4,4.28889849]
[1765497620185,0.002,3237.5,3237.4,4.74999849]
[1765497620380,0.002,3237.5,3237.4,5.47954963]
[1765497620711,0.4822,3237.5,3237.4,5.47954963]
[1765497621029,0.9523,3237.5,3237.4,1.2]
[1765497621228,0.9523,3237.5,3237.1,3.08914799]
[1765497621519,0.4701,3237.4,3237.3,3.08899391]
[1765497622095,0.9503,3237.4,3237.3,3.08899391]
[1765497622300,0.9503,3237.4,3236.9,6.17875126]
[1765497622600,0.3226,3237.2,3237.0,1.23812616]
[1765497623136,0.4787,3237.1,3237.0,1.23812616]
[1765497623512,0.4721,3237.5,3237.0,1.69922616]
[1765497624027,0.4721,3237.5,3237.1,1.2]
[1765497624545,0.4802,3237.2,3237.1,4.28918476]
[1765497624890,0.4802,3237.2,3237.1,5.15083779]
[1765497625115,0.9503,3237.2,3237.1,1.2]
[1765497627599,0.4802,3237.2,3237.1,1.2]
[1765497627937,0.4802,3237.2,3237.1,4.28918476]
[1765497629026,0.002,3237.5,3237.1,4.91728476]
[1765497629197,0.4721,3237.5,3237.2,0.28300997]
[1765497629414,0.4802,3237.2,3237.1,4.28918476]
[1765497629831,0.9503,3237.2,3237.1,4.28918476]
[1765497630751,0.4802,3237.2,3237.1,4.28918476]
[1765497631826,0.4802,3237.2,3237.1,1.2]
[1765497632030,0.9503,3237.2,3237.1,1.2]
[1765497632733,0.9503,3237.2,3236.4,0.488]
[1765497632734,4.03938933,3237.2,3236.5,3.08975745]
[1765497632918,0.4701,3237.1,3236.5,6.1795149]
[1765497633121,0.4701,3237.1,3236.4,0.77100997]
[1765497633122,0.6615,3236.6,3236.4,3.089821]
[1765497633319,0.3345,3236.5,3236.1,0.001]
[1765497633540,0.8046,3236.5,3236.1,0.001]
[1765497633749,0.8046,3236.5,3236.1,3.09111081]
[1765497633942,0.4701,3236.4,3236.1,3.09111081]
[1765497634252,0.4788,3236.2,3236.1,3.0910971]
[1765497634620,0.9489,3236.2,3236.1,0.001]
[1765497634825,4.03894387,3236.2,3236.1,0.001]
[1765497635352,0.9489,3236.2,3236.1,0.001]
[1765497638254,0.6514,3236.9,3236.1,1.0914]
[1765497638432,0.6703,3236.9,3236.5,0.4611]
[1765497638637,1.1404,3236.9,3236.2,0.28300997]
[1765497638957,0.6703,3236.9,3236.2,0.28300997]
[1765497639257,0.4701,3236.8,3236.2,0.28300997]
[1765497640352,0.4701,3236.8,3236.1,0.001]
[1765497640550,0.4701,3236.8,3236.2,3.09001339]
[1765497640946,0.4802,3236.3,3236.2,3.09001339]
[1765497641143,0.4802,3236.3,3236.2,3.73645903]
[1765497641350,0.4802,3236.3,3236.2,3.09004387]
[1765497641351,0.9503,3236.3,3236.2,3.09004387]
[1765497642053,3.75969433,3236.9,3236.2,6.64118774]
[1765497642054,0.9591,3236.8,3236.2,6.64118774]
[1765497642834,0.9591,3236.8,3236.4,4.28977854]
[1765497643052,0.4885,3236.7,3236.4,4.28977854]
[1765497643253,0.4924,3236.5,3236.4,4.28977854]
[1765497643839,0.9809,3236.5,3236.4,1.2]
[1765497644046,0.9809,3236.5,3236.1,0.001]
[1765497644357,0.3043,3236.2,3236.1,0.001]
[1765497644562,0.7933,3236.2,3236.1,0.001]
[1765497644772,1.2818,3236.2,3236.1,0.001]
[1765497645073,4.37184387,3236.2,3236.1,0.001]
[1765497645269,5.11802297,3236.2,3236.1,0.001]
[1765497646774,2.0279791,3236.2,3236.1,0.001]
[1765497646957,0.3043,3236.2,3236.1,0.001]
[1765497647342,0.489,3236.5,3236.1,0.4919]
[1765497647662,3.08952578,3236.8,3236.4,0.4909]
[1765497647960,0.1813,3236.9,3236.4,0.4909]
[1765497648212,0.9775,3237.2,3236.5,0.28300997]
[1765497648336,0.1907,3237.1,3236.8,0.4909]
[1765497649031,0.6792,3237.1,3236.8,0.4909]
[1765497649251,0.4905,3237.5,3237.0,0.4909]
[1765497649570,0.4905,3237.5,3236.8,3.08946024]
[1765497649571,0.489,3237.3,3236.8,3.08946024]
[1765497649732,0.4885,3237.4,3236.8,6.17893132]
[1765497649937,0.002,3237.5,3236.9,0.28300997]
[1765497650260,0.002,3237.5,3236.9,0.74290997]
[1765497651062,0.4885,3237.4,3236.8,3.0894188]
[1765497651246,0.4885,3237.4,3236.9,3.08935338]
[1765497651445,0.84642614,3237.4,3236.9,3.08935338]
[1765497652368,0.9775,3237.3,3236.9,3.08935338]
[1765497653239,0.4885,3237.2,3236.7,0.58047529]
[1765497653956,0.4885,3237.2,3236.8,1.2]
[1765497657069,0.4885,3237.2,3236.9,3.08937563]
[1765497657381,0.002,3237.5,3236.9,3.08937563]
[1765497657581,0.002,3237.5,3237.1,0.4909]
[1765497657941,0.4905,3237.5,3237.1,0.4909]
[1765497658871,0.491,3237.5,3237.1,1.1178]
[1765497659176,0.4885,3237.4,3237.0,3.08922013]
[1765497659366,0.4885,3237.4,3237.1,3.08918228]
[1765497659871,0.491,3237.5,3237.1,3.08918228]
[1765497660047,0.9795,3237.5,3237.1,3.08918228]
[1765497660568,0.491,3237.5,3237.1,3.08918228]
[1765497660867,0.002,3237.5,3237.4,0.4909]
[1765497661046,0.002,3237.5,3237.4,3.57979849]
[1765497661241,0.002,3237.5,3237.4,4.62017378]
[1765497661660,0.002,3237.5,3237.4,4.16027378]
[1765497661865,0.002,3237.5,3237.4,5.37340192]
[1765497662466,0.002,3237.5,3237.4,5.65641189]
[1765497663440,0.002,3237.5,3237.4,6.54991589]
[1765497663646,0.002,3237.5,3237.4,16.24524789]
[1765497664042,0.002,3237.5,3237.4,36.54991589]
[1765497664267,0.002,3238.1,3237.5,0.98597929]
[1765497664458,0.002,3238.1,3238.0,0.4909]
[1765497664663,0.002,3238.1,3238.0,0.9789]
[1765497664864,0.002,3238.1,3238.0,1.4388]
[1765497665172,0.002,3238.1,3238.0,5.10760141]
[1765497670387,0.002,3238.1,3238.0,5.51310541]
[1765497670695,0.002,3238.1,3238.0,6.40155928]
[1765497671577,0.002,3238.1,3238.0,6.80816126]
[1765497671780,0.002,3238.1,3238.0,6.06525129]
[1765497672280,0.002,3238.1,3238.0,6.52515129]
[1765497675483,0.002,3238.1,3238.0,6.80816126]
[1765497677690,0.002,3238.1,3238.0,6.06525129]
[1765497677892,0.916,3238.1,3237.6,3.08867855]
[1765497678215,0.916,3238.1,3237.2,0.4642]
[1765497678216,0.6329,3237.5,3237.2,0.4642]
[1765497678390,0.4518,3237.3,3236.6,0.488]
[1765497678587,0.4518,3237.3,3237.1,3.08916257]
[1765497678765,0.4518,3237.3,3236.9,6.17875126]
[1765497678968,0.914,3237.3,3237.0,1.25639795]
[1765497679169,0.4518,3237.3,3237.0,1.25639795]
[1765497679682,0.4622,3237.6,3237.2,0.4922]
[1765497680358,0.4622,3237.6,3237.0,1.25639795]
[1765497681779,0.4622,3237.6,3237.1,3.08918476]
[1765497681956,0.4622,3237.6,3237.1,6.17836952]
[1765497682162,0.4622,3237.6,3237.1,6.92184627]
[1765497683104,0.1818,3237.8,3237.1,7.58304627]
[1765497683409,0.002,3238.1,3237.7,0.4922]
[1765497683559,0.002,3238.1,3237.9,0.4922]
[1765497683759,0.002,3238.1,3237.5,0.488]
[1765497683958,0.002,3238.1,3237.7,6.17722456]
[1765497684428,0.002,3238.1,3238.0,0.4922]
[1765497684756,0.4538,3238.1,3237.7,6.17722456]
[1765497685492,0.002,3238.1,3237.7,6.17722456]
[1765497685978,0.4518,3237.8,3237.7,3.66908757]
[1765497686163,0.4518,3237.8,3237.7,4.44662037]
[1765497686564,0.4622,3238.0,3237.7,7.53523265]
[1765497687489,0.002,3238.1,3237.7,7.53523265]
[1765497687671,0.4642,3238.1,3237.7,7.53523265]
[1765497688790,0.002,3238.1,3238.0,3.86353609]
[1765497688967,0.002,3238.1,3238.0,6.11905974]
[1765497689173,0.002,3238.1,3238.0,6.61325974]
[1765497692894,0.002,3238.1,3238.0,6.11905974]
[1765497693066,0.002,3238.1,3238.0,6.61325974]
[1765497693390,0.916,3238.1,3238.0,4.45034577]
[1765497693595,0.916,3238.1,3238.0,3.66880141]
[1765497695265,0.916,3238.1,3237.4,1.2]
[1765497695495,0.916,3238.1,3237.4,3.08889371]
[1765497695496,0.6336,3237.5,3237.4,3.08889371]
[1765497695864,0.4518,3237.5,3237.4,3.669369]
[1765497697499,0.644,3237.8,3237.4,7.95826749]
[1765497697666,0.1818,3237.8,3237.4,9.06299384]
[1765497697872,0.4518,3237.5,3237.4,4.869369]
[1765497698294,0.914,3237.5,3237.4,4.869369]
[1765497701098,0.914,3237.5,3237.4,1.78047529]
[1765497701509,0.914,3237.5,3237.4,4.86937378]
[1765497703307,0.4518,3237.5,3237.4,4.86937378]
[1765497704305,0.6457,3237.8,3237.4,7.95827227]
[1765497704504,0.4639,3237.7,3237.4,7.95827227]
[1765497704688,0.4788,3237.5,3237.4,4.86937378]
[1765497706301,0.002,3238.1,3237.5,0.58047529]
[1765497706483,0.002,3238.1,3237.6,0.4947]
[1765497706925,0.4659,3238.1,3237.6,0.4947]
[1765497708396,0.4659,3238.1,3237.7,6.17722456]
[1765497708602,0.199,3237.7,3237.4,1.2]
[1765497708808,0.199,3237.7,3237.6,3.08870768]
[1765497709183,0.6778,3237.7,3237.6,3.08870768]
[1765497709677,1.1417,3237.7,3237.6,3.08870768]
[1765497710509,1.1417,3237.7,3237.5,3.66927837]
[1765497711012,0.4788,3237.6,3237.5,3.66927837]
[1765497711521,0.9427,3237.6,3237.4,5.03815507]
[1765497711702,0.3499,3237.5,3237.4,5.03815507]
[1765497711885,0.8138,3237.5,3237.4,5.03815507]
[1765497712089,0.8138,3237.5,3237.4,4.86935507]
[1765497712519,0.3499,3237.5,3237.4,4.86935507]
[1765497713026,0.002,3238.1,3237.4,8.45295356]
[1765497713228,0.687,3237.9,3237.4,8.45295356]
[1765497713635,1.1509,3237.9,3237.4,8.45295356]
[1765497714138,0.199,3237.9,3237.4,8.45295356]
[1765497714291,0.002,3238.1,3237.5,0.4876]
[1765497714830,0.002,3238.1,3237.6,6.17741536]
[1765497715832,0.4659,3238.1,3237.6,6.17741536]
[1765497716802,0.4659,3238.1,3237.4,3.26643721]
[1765497716803,0.4659,3238.1,3237.5,6.17760616]
[1765497717000,0.4659,3238.1,3237.5,7.47966776]
[1765497719215,0.4788,3237.6,3237.5,3.08880308]
[1765497719725,0.9427,3237.6,3237.5,3.08880308]
[1765497720517,0.4788,3237.6,3237.5,3.08880308]
[1765497722625,0.6629,3238.0,3237.5,6.67230616]
[1765497723336,0.002,3238.1,3237.9,0.4947]
[1765497723540,0.002,3238.1,3238.0,0.4947]
[1765497724303,0.002,3238.1,3238.0,0.9823]
[1765497724727,0.002,3238.1,3238.0,4.65110141]
[1765497724933,0.002,3238.1,3238.0,4.96575465]
[1765497725147,0.002,3238.1,3238.0,0.58047529]
[1765497725148,0.9447,3238.1,3238.0,0.58047529]
[1765497726304,0.9447,3238.1,3238.0,3.66880141]
[1765497727357,0.9447,3238.1,3238.0,0.58047529]
[1765497727539,0.9447,3238.1,3238.0,3.66880141]
[1765497728470,0.4808,3238.1,3238.0,3.66880141]
[1765497730545,0.002,3238.1,3238.0,4.83922364]
[1765497733047,0.002,3238.1,3238.0,4.34452364]
[1765497733263,0.002,3238.1,3238.0,5.70232764]
[1765497733544,0.4963,3238.1,3238.0,4.34452364]
[1765497735256,0.954,3238.1,3238.0,3.66880141]
[1765497735636,1.442,3238.1,3237.4,1.2]
[1765497735824,0.6474,3237.5,3237.4,4.28889849]
[1765497736020,0.6474,3237.5,3237.4,4.86937378]
[1765497736224,1.1051,3237.5,3237.4,4.86937378]
[1765497736526,3.57825518,3238.1,3237.4,4.86937378]
[1765497736527,0.002,3238.1,3237.6,30.405504]
[1765497736725,0.002,3238.1,3237.5,0.58047529]
[1765497736726,0.002,3238.1,3238.0,0.4639]
[1765497737623,0.002,3238.1,3238.0,3.55222612]
[1765497738132,0.002,3238.1,3238.0,4.13270141]
[1765497740257,0.002,3238.1,3238.0,4.59870141]
[1765497740434,0.002,3238.1,3238.0,4.92971484]
[1765497743277,0.002,3238.1,3238.0,5.39571484]
[1765497743845,0.002,3238.1,3238.0,4.92971484]
[1765497744887,0.9233,3238.1,3238.0,1.37748872]
[1765497745091,0.9233,3238.1,3238.0,0.58047529]
[1765497745942,0.002,3238.1,3238.0,4.13270141]
[1765497748373,0.002,3238.1,3238.0,5.00420541]
[1765497749073,0.002,3238.1,3238.0,4.13270141]
[1765497749275,0.002,3238.1,3238.0,4.90371369]
[1765497749475,0.002,3238.1,3238.0,5.36971369]
[1765497750081,0.002,3238.1,3238.0,4.90371369]
[1765497751478,0.4656,3238.1,3238.0,4.43981369]
[1765497751662,0.002,3238.1,3238.0,4.90371369]
[1765497752287,0.002,3238.1,3238.0,4.43981369]
[1765497752288,0.4656,3238.1,3238.0,4.43981369]
[1765497752592,0.002,3238.1,3238.0,4.43981369]
[1765497753324,0.002,3238.1,3238.0,5.30921769]
[1765497754901,0.9233,3238.1,3238.0,4.43981369]
[1765497755069,0.9233,3238.1,3238.0,3.66880141]
[1765497755587,0.9233,3238.1,3238.0,0.58047529]
[1765497755890,0.9233,3238.1,3238.0,3.66880141]
[1765497756090,0.9233,3238.1,3238.0,0.58047529]
[1765497756279,0.9233,3238.1,3238.0,3.66880141]
[1765497756477,0.002,3238.1,3238.0,5.67992762]
[1765497756872,0.002,3238.1,3238.0,5.21392762]
[1765497757683,0.002,3238.1,3238.0,5.67992762]
[1765497759290,0.002,3238.1,3238.0,6.87992762]
[1765497760602,0.002,3238.7,3238.3,0.98597929]
[1765497760892,0.002,3238.7,3238.6,4.70463325]
[1765497761299,0.002,3238.7,3238.6,5.17063325]
[1765497761592,0.002,3238.7,3238.6,4.70463325]
[1765497761961,0.002,3238.7,3238.6,5.17063325]
[1765497762996,0.002,3238.7,3238.6,35.20151078]
[1765497763199,0.002,3238.7,3238.6,38.22836319]
[1765497763406,0.002,3239.4,3239.3,30.98597929]
[1765497763606,0.002,3239.4,3239.3,27.94969929]
[1765497763776,0.002,3239.4,3239.3,28.41719929]
[1765497764099,0.002,3239.4,3239.3,32.51790947]
[1765497764265,0.002,3239.4,3239.3,35.57563941]
[1765497765074,0.002,3239.4,3239.3,8.66272612]
[1765497765392,0.002,3239.4,3239.3,38.94573609]
[1765497767297,0.002,3239.4,3239.3,33.51091109]
[1765497767870,0.458,3239.4,3239.3,6.84882212]
[1765497768069,0.458,3239.4,3239.3,3.667562]
[1765497768348,0.002,3239.4,3239.3,4.119462]
[1765497768599,0.002,3239.4,3239.3,34.992466]
[1765497769081,0.002,3239.4,3239.3,34.540575]
[1765497769669,0.002,3239.4,3239.3,12.955653]
[1765497770004,0.458,3239.4,3239.3,5.60886581]
[1765497770297,0.002,3239.4,3239.3,6.46626981]
[1765497773328,0.002,3239.4,3239.3,23.85689381]
[1765497774382,0.002,3239.4,3239.3,23.30569381]
[1765497775707,0.002,3239.4,3239.3,36.93376981]
[1765497776909,0.002,3239.4,3239.3,31.04780181]
[1765497777126,0.9134,3239.4,3239.3,25.89000481]
[1765497777295,0.9134,3239.4,3238.8,7.480883]
[1765497777609,0.8502,3239.3,3239.2,3.66765731]
[1765497778578,0.8502,3239.3,3239.2,0.58047529]
[1765497781028,0.8502,3239.3,3239.2,3.66765731]
[1765497781234,0.8502,3239.3,3239.2,0.58047529]
[1765497781402,0.8502,3239.3,3238.8,0.58047529]
[1765497781724,0.4554,3239.2,3238.8,0.58047529]
[1765497781895,0.6416,3238.9,3238.8,0.58047529]
[1765497782424,1.097,3238.9,3238.8,0.58047529]
[1765497782624,1.097,3238.9,3238.2,0.489]
[1765497782924,1.097,3238.9,3237.4,3.08887928]
[1765497782925,0.456,3238.3,3237.9,0.489]
[1765497783094,0.393,3238.2,3238.1,3.66868158]
[1765497783294,0.1856,3238.9,3238.2,0.58047529]
[1765497783295,0.4554,3238.7,3238.2,0.58047529]
[1765497783700,0.4554,3238.7,3238.3,6.17608004]
[1765497784103,0.456,3238.4,3238.3,3.08804002]
[1765497784308,0.1856,3238.9,3238.3,6.17608004]
[1765497784595,0.1856,3238.9,3238.4,0.58047529]
[1765497784816,0.641,3238.9,3238.4,1.63843146]
[1765497785221,0.4554,3238.8,3238.4,1.63843146]
[1765497786036,0.4554,3238.8,3238.5,6.17569862]
[1765497788033,0.4554,3238.8,3238.5,3.08784931]
[1765497788433,0.4554,3238.8,3238.5,6.17569862]
[1765497789132,0.456,3238.6,3238.3,0.489]
[1765497789336,0.393,3238.4,3238.3,0.58047529]
[1765497789708,0.8484,3238.4,3238.3,3.66851531]
[1765497790908,0.1856,3238.9,3238.3,7.88412834]
[1765497791321,0.641,3238.9,3238.3,7.88412834]
[1765497793437,0.002,3239.4,3238.8,0.4529]
[1765497793734,0.4795,3239.3,3238.6,0.405504]
[1765497794446,0.4795,3239.3,3238.6,0.97265984]
[1765497795059,0.4795,3239.3,3238.7,6.17531724]
[1765497795354,0.4795,3239.3,3238.7,6.45832721]
[1765497795645,0.002,3239.4,3238.7,6.45832721]
[1765497795830,0.002,3239.4,3238.7,6.94422721]
[1765497796009,0.002,3239.4,3238.8,1.372164]
[1765497796332,0.4847,3239.4,3238.8,1.372164]
[1765497797135,0.4847,3239.4,3238.9,3.08746796]
[1765497797638,0.4591,3239.0,3238.7,0.58047529]
[1765497797940,3.57171782,3239.4,3238.8,3.08755412]
[1765497798112,0.4827,3239.3,3238.8,3.08755412]
[1765497798315,0.4591,3238.9,3238.8,3.66802941]
[1765497798618,0.6523,3238.9,3238.8,3.66802941]
[1765497798820,1.135,3238.9,3238.8,3.66802941]
[1765497799021,1.135,3238.9,3238.8,0.58047529]
[1765497799831,0.6523,3238.9,3238.8,0.58047529]
[1765497800028,0.4591,3238.9,3238.8,3.66803858]
[1765497800635,0.9418,3238.9,3238.8,3.66803858]
[1765497801740,0.4827,3239.3,3238.8,3.66803858]
[1765497802311,0.4827,3239.3,3238.8,6.75560187]
[1765497802517,0.4827,3239.3,3238.8,7.43116206]
[1765497802832,0.002,3239.4,3239.2,0.4856]
[1765497803032,0.4847,3239.4,3238.8,7.43116206]
[1765497803540,0.6523,3238.9,3238.8,0.58047529]
[1765497804046,1.135,3238.9,3238.8,0.58047529]
[1765497804543,1.135,3238.9,3238.8,3.66803858]
[1765497804847,1.135,3238.9,3238.8,4.86803858]
[1765497805542,0.4591,3238.9,3238.8,4.86803858]
[1765497805917,0.4591,3238.9,3238.8,6.04260816]
[1765497809914,0.002,3239.4,3238.9,0.58047529]
[1765497810117,0.002,3239.4,3239.3,0.4856]
[1765497810539,0.002,3239.4,3239.3,0.9715]
[1765497810752,0.002,3239.4,3239.3,0.4856]
[1765497812150,0.002,3239.4,3239.3,4.153162]
[1765497812451,0.002,3239.4,3239.3,4.89389643]
[1765497812948,0.9438,3239.4,3239.3,4.40829643]
[1765497813654,0.4611,3239.4,3239.3,4.40829643]
[1765497814945,0.9438,3239.4,3239.3,1.32120972]
[1765497815258,0.9438,3239.4,3239.3,3.667562]
[1765497815259,0.4611,3239.4,3239.3,3.667562]
[1765497815823,0.9438,3239.4,3239.3,0.58047529]
[1765497816450,0.4611,3239.4,3239.3,3.667562]
[1765497816765,0.9438,3239.4,3239.3,0.58047529]
[1765497817130,0.9438,3239.4,3239.3,3.667562]
[1765497817467,0.9438,3239.4,3239.3,0.58047529]
[1765497817835,1.34706642,3239.4,3238.8,4.28755851]
[1765497818039,1.34706642,3239.4,3238.7,3.08758428]
[1765497818040,0.6523,3238.9,3238.7,3.08758428]
[1765497818353,0.1932,3238.9,3238.7,3.08758428]
[1765497818535,0.4591,3238.8,3238.6,3.66822472]
[1765497818737,0.4591,3238.8,3238.6,6.75597868]
[1765497818936,0.3553,3238.7,3238.6,3.66822472]
[1765497820570,0.838,3238.7,3238.6,0.58047529]
[1765497820782,0.838,3238.7,3238.6,3.66822925]
[1765497822751,0.3553,3238.7,3238.6,3.66822925]
[1765497823151,0.8329,3238.7,3238.6,3.66822925]
[1765497823462,0.8329,3238.7,3238.6,4.86822925]
[1765497823849,0.3553,3238.7,3238.6,4.86822925]
[1765497824053,0.8329,3238.7,3238.6,4.86822925]
[1765497826065,0.3553,3238.7,3238.6,4.86822925]
[1765497827751,0.489,3239.2,3238.6,8.40668321]
[1765497827958,0.4776,3239.1,3238.6,8.40668321]
[1765497828754,0.4548,3238.7,3238.6,4.86822925]
[1765497828955,0.4776,3239.1,3238.6,8.75159096]
[1765497829668,0.4548,3238.7,3238.6,4.86822925]
[1765497831568,0.9324,3238.7,3238.6,4.86822925]
[1765497831762,0.4548,3238.7,3238.6,4.86822925]
[1765497833970,0.9666,3239.2,3238.6,8.40668321]
[1765497834292,0.489,3239.1,3238.6,8.40668321]
[1765497834488,0.489,3239.1,3238.7,0.60127369]
[1765497834783,0.9666,3239.1,3238.7,0.60127369]
[1765497835087,0.491,3239.4,3239.0,0.4507]
[1765497835375,0.491,3239.4,3239.3,0.4507]
[1765497835376,0.002,3239.4,3239.3,0.4507]
[1765497837438,0.002,3239.4,3239.3,3.53778671]
[1765497837875,0.4568,3239.4,3239.2,3.08715566]
[1765497838189,0.4796,3239.4,3239.3,1.2]
[1765497838645,0.9344,3239.4,3239.3,1.2]
[1765497840655,1.38563039,3239.4,3239.3,1.2]
[1765497841580,0.9344,3239.4,3239.3,1.2]
[1765497842265,0.4568,3239.4,3239.3,1.2]
[1765497842645,0.002,3239.4,3239.3,4.28708671]
[1765497842873,0.4568,3239.4,3239.3,1.2]
[1765497843078,0.9344,3239.4,3239.3,1.2]
[1765497843580,7.10838282,3239.4,3238.7,0.58047529]
[1765497843876,1.18863828,3239.3,3238.7,0.58047529]
[1765497844180,0.5579,3238.8,3238.4,3.08794026]
[1765497844360,0.4539,3238.7,3238.2,4.278]
[1765497844556,0.4539,3238.7,3238.3,3.08801595]
[1765497844768,0.4548,3238.2,3237.7,0.28300997]
[1765497845099,0.4776,3238.6,3237.5,3.08879759]
[1765497845100,0.3621,3237.8,3237.5,3.08879759]
[1765497845405,0.4776,3238.6,3237.2,3.09005034]
[1765497845406,0.5588,3237.6,3237.2,3.09005034]
[1765497845689,0.5588,3237.6,3237.2,0.001]
[1765497845690,0.4411,3237.4,3237.2,0.001]
[1765497846043,0.9187,3237.4,3237.2,0.58147529]
[1765497846553,0.9187,3237.4,3237.2,0.001]
[1765497847566,4.00759849,3237.4,3237.2,0.001]
[1765497847875,5.22581034,3237.4,3237.2,0.001]
[1765497848653,5.80628563,3237.4,3237.2,0.001]
[1765497849274,6.21178963,3237.4,3237.2,0.001]
[1765497851661,3.09004387,3236.2,3235.2,3.09197145]
[1765497851989,4.03274387,3236.2,3235.2,3.09197145]
[1765497852183,4.51034387,3236.2,3235.2,3.09197145]
[1765497852388,4.51034387,3236.2,3236.0,0.001]
[1765497855865,0.9313,3236.2,3236.0,0.001]
[1765497856058,4.51034387,3236.2,3236.0,0.001]
[1765497857490,5.2703724,3236.2,3236.0,0.001]
[1765497863715,1.69132853,3236.2,3236.0,0.001]
[1765497864015,4.03274387,3236.2,3236.0,0.001]
[1765497864386,4.49244387,3236.2,3236.0,0.001]
[1765497867827,4.89794787,3236.2,3236.0,0.001]
[1765497868127,4.40894787,3236.2,3236.0,0.001]
[1765497868315,4.89794787,3236.2,3236.0,0.001]
[1765497868627,5.69673751,3236.2,3236.0,0.001]
[1765497869125,4.80223351,3236.2,3236.0,0.001]
[1765497869311,5.29123351,3236.2,3236.0,0.001]
[1765497870109,4.80223351,3236.2,3236.0,0.001]
[1765497870325,5.29123351,3236.2,3236.0,0.001]
[1765497871825,4.83153351,3236.2,3236.0,0.001]
[1765497872208,1.25248964,3236.2,3236.0,0.001]
[1765497872412,6.17952958,3236.5,3236.1,0.4648]
[1765497872612,0.489,3236.2,3236.1,0.4648]
[1765497872816,0.9608,3236.2,3236.1,0.001]
[1765497873615,1.4205,3236.2,3236.1,0.001]
[1765497873937,0.489,3236.2,3236.1,0.4648]
[1765497874317,3.08975745,3236.5,3236.1,0.4648]
[1765497874624,0.489,3236.4,3236.1,0.6318]
[1765497874820,6.17924531,3236.7,3236.4,0.4638]
[1765497875033,1.15289453,3236.6,3236.1,0.001]
[1765497875233,1.15289453,3236.6,3236.1,0.168]
[1765497875438,0.489,3236.6,3236.1,0.65]
[1765497875743,0.489,3236.5,3236.1,0.65]
[1765497876245,3.08959275,3236.7,3236.4,0.4638]
[1765497876441,3.08947108,3236.8,3236.6,0.4638]
[1765497876742,1.63673994,3236.7,3236.2,0.482]
[1765497877042,1.63673994,3236.7,3236.1,0.168]
[1765497878644,0.489,3236.6,3236.1,0.168]
[1765497879127,0.489,3236.6,3236.2,0.482]
[1765497879327,3.76554765,3236.7,3236.1,0.168]
[1765497879328,0.489,3236.5,3236.1,0.168]
[1765497879643,0.489,3236.5,3236.1,0.65]
[1765497879844,0.489,3236.5,3236.1,0.168]